[Event "Titled Tuesday Blitz June 21 Early 2022"]
[White "Agibileg, Uurtsaikh"]
[Black "Lazavik, Denis"]
[WhiteFideId "4901606"]
[BlackFideId "13515110"]
[WhiteElo "2205"]
[BlackElo "2437"]
[Result "0-1"]
[Round "02"]
[TimeControl "180+1"]
[Date "2022.06.21"]
[WhiteClock "0:00:07"]
[BlackClock "0:00:10"]

1. d4 {[%clk 0:03:00]}  f5 {[%clk 0:02:59]} 2. c4 {[%clk 0:03:01]}  Nf6 {[%clk 0:02:58]} 3. g3 {[%clk 0:03:01]}  g6 {[%clk 0:02:58]} 4. Bg2 {[%clk 0:03:02]}  Bg7 {[%clk 0:02:59]} 5. Nf3 {[%clk 0:03:01]}  O-O {[%clk 0:02:59]} 6. O-O {[%clk 0:03:02]}  d6 {[%clk 0:03:00]} 7. b3 {[%clk 0:02:55]}  e5 {[%clk 0:02:59]} 8. dxe5 {[%clk 0:02:30]}  dxe5 {[%clk 0:02:58]} 9. Ba3 {[%clk 0:02:30]}  Qxd1 {[%clk 0:02:57]} 10. Rxd1 {[%clk 0:02:31]}  Re8 {[%clk 0:02:57]} 11. Nc3 {[%clk 0:02:25]}  e4 {[%clk 0:02:57]} 12. Nd4 {[%clk 0:02:26]}  c6 {[%clk 0:02:56]} 13. f3 {[%clk 0:02:18]}  Nbd7 {[%clk 0:02:46]} 14. Bd6 {[%clk 0:02:17]}  Ne5 {[%clk 0:02:38]} 15. fxe4 {[%clk 0:02:10]}  fxe4 {[%clk 0:02:34]} 16. h3 {[%clk 0:01:48]}  Nf7 {[%clk 0:02:11]} 17. Bf4 {[%clk 0:01:47]}  Nh5 {[%clk 0:02:11]} 18. Nxe4 {[%clk 0:01:38]}  Bxh3 {[%clk 0:01:59]} 19. Bf3 {[%clk 0:01:11]}  Rad8 {[%clk 0:01:52]} 20. e3 {[%clk 0:00:47]}  Nf6 {[%clk 0:01:29]} 21. Nf2 {[%clk 0:00:40]}  Bc8 {[%clk 0:01:27]} 22. Nc2 {[%clk 0:00:25]}  Bf5 {[%clk 0:01:10]} 23. Rxd8 {[%clk 0:00:22]}  Rxd8 {[%clk 0:01:07]} 24. Nd4 {[%clk 0:00:21]}  Bc8 {[%clk 0:01:03]} 25. Rd1 {[%clk 0:00:21]}  g5 {[%clk 0:00:54]} 26. Bc7 {[%clk 0:00:21]}  Rd7 {[%clk 0:00:54]} 27. Ba5 {[%clk 0:00:21]}  Ne5 {[%clk 0:00:54]} 28. Be2 {[%clk 0:00:20]}  h5 {[%clk 0:00:40]} 29. Bc3 {[%clk 0:00:19]}  Re7 {[%clk 0:00:25]} 30. Nc2 {[%clk 0:00:17]}  Bf5 {[%clk 0:00:25]} 31. Rd8+ {[%clk 0:00:17]}  Kf7 {[%clk 0:00:23]} 32. Nd4 {[%clk 0:00:17]}  Bg6 {[%clk 0:00:22]} 33. c5 {[%clk 0:00:17]}  Nd5 {[%clk 0:00:19]} 34. Bb2 {[%clk 0:00:16]}  Nxe3 {[%clk 0:00:19]} 35. b4 {[%clk 0:00:15]}  Nd5 {[%clk 0:00:18]} 36. a3 {[%clk 0:00:14]}  Rd7 {[%clk 0:00:16]} 37. Rxd7+ {[%clk 0:00:13]}  Nxd7 {[%clk 0:00:17]} 38. Bc4 {[%clk 0:00:14]}  Nf6 {[%clk 0:00:12]} 39. b5 {[%clk 0:00:11]}  cxb5 {[%clk 0:00:07]} 40. Nxb5 {[%clk 0:00:11]}  Kf8 {[%clk 0:00:07]} 41. Nd6 {[%clk 0:00:10]}  Ne3 {[%clk 0:00:07]} 42. Be6 {[%clk 0:00:08]}  h4 {[%clk 0:00:05]} 43. gxh4 {[%clk 0:00:07]}  gxh4 {[%clk 0:00:05]} 44. Nxb7 {[%clk 0:00:07]}  Nfd5 {[%clk 0:00:05]} 45. Bxg7+ {[%clk 0:00:06]}  Kxg7 {[%clk 0:00:05]} 46. c6 {[%clk 0:00:06]}  Nc7 {[%clk 0:00:06]} 47. Bh3 {[%clk 0:00:06]}  Kf6 {[%clk 0:00:06]} 48. Ng4+ {[%clk 0:00:05]}  Nxg4 {[%clk 0:00:06]} 49. Bxg4 {[%clk 0:00:06]}  Be4 {[%clk 0:00:07]} 50. Bd7 {[%clk 0:00:06]}  Ke5 {[%clk 0:00:06]} 51. Nc5 {[%clk 0:00:06]}  Bd5 {[%clk 0:00:06]} 52. Kh2 {[%clk 0:00:06]}  Kd4 {[%clk 0:00:07]} 53. Na4 {[%clk 0:00:05]}  Bb3 {[%clk 0:00:07]} 54. Nb2 {[%clk 0:00:03]}  Kc3 {[%clk 0:00:08]} 55. Be6 {[%clk 0:00:03]}  Kxb2 {[%clk 0:00:07]} 56. Bxb3 {[%clk 0:00:03]}  Kxb3 {[%clk 0:00:08]} 57. Kh3 {[%clk 0:00:04]}  Kxa3 {[%clk 0:00:08]} 58. Kxh4 {[%clk 0:00:04]}  Kb2 {[%clk 0:00:09]} 59. Kg5 {[%clk 0:00:05]}  a5 {[%clk 0:00:09]} 60. Kf6 {[%clk 0:00:06]}  a4 {[%clk 0:00:10]} 61. Ke7 {[%clk 0:00:06]}  a3 {[%clk 0:00:10]} 62. Kd7 {[%clk 0:00:07]}  Nb5 {[%clk 0:00:10]} 0-1


[Site "https://www.chess.com"]

[Event "Titled Tuesday Blitz June 21 Early 2022"]
[White "Alinasab, Mobina"]
[Black "Paravyan, David"]
[WhiteFideId "12528897"]
[BlackFideId "4194985"]
[WhiteElo "2031"]
[BlackElo "2569"]
[Result "0-1"]
[Round "02"]
[TimeControl "180+1"]
[Date "2022.06.21"]
[WhiteClock "0:00:02"]
[BlackClock "0:00:13"]

1. Nf3 {[%clk 0:03:00]}  Nf6 {[%clk 0:02:58]} 2. g3 {[%clk 0:02:59]}  g6 {[%clk 0:02:58]} 3. Bg2 {[%clk 0:02:58]}  Bg7 {[%clk 0:02:58]} 4. d4 {[%clk 0:02:58]}  d5 {[%clk 0:02:58]} 5. b3 {[%clk 0:02:58]}  O-O {[%clk 0:02:58]} 6. O-O {[%clk 0:02:59]}  Bg4 {[%clk 0:02:57]} 7. Bb2 {[%clk 0:03:00]}  Bxf3 {[%clk 0:02:55]} 8. Bxf3 {[%clk 0:02:59]}  c6 {[%clk 0:02:56]} 9. c4 {[%clk 0:02:58]}  Ne4 {[%clk 0:02:54]} 10. Nc3 {[%clk 0:02:55]}  Nxc3 {[%clk 0:02:53]} 11. Bxc3 {[%clk 0:02:56]}  e6 {[%clk 0:02:52]} 12. e4 {[%clk 0:02:54]}  dxc4 {[%clk 0:02:38]} 13. bxc4 {[%clk 0:02:52]}  c5 {[%clk 0:02:38]} 14. e5 {[%clk 0:02:34]}  cxd4 {[%clk 0:02:35]} 15. Bxb7 {[%clk 0:02:24]}  dxc3 {[%clk 0:02:14]} 16. Bxa8 {[%clk 0:02:07]}  Na6 {[%clk 0:02:08]} 17. Bf3 {[%clk 0:01:55]}  Bxe5 {[%clk 0:02:05]} 18. Rc1 {[%clk 0:01:52]}  Nc5 {[%clk 0:02:03]} 19. Qe2 {[%clk 0:01:49]}  Qc7 {[%clk 0:01:55]} 20. Rfd1 {[%clk 0:01:42]}  Rb8 {[%clk 0:01:54]} 21. Rc2 {[%clk 0:01:41]}  Rb2 {[%clk 0:01:52]} 22. Rdc1 {[%clk 0:01:33]}  Bd4 {[%clk 0:01:40]} 23. Qd1 {[%clk 0:01:13]}  e5 {[%clk 0:01:40]} 24. Bd5 {[%clk 0:01:11]}  Kg7 {[%clk 0:01:33]} 25. Qf3 {[%clk 0:00:28]}  Qd7 {[%clk 0:01:21]} 26. h4 {[%clk 0:00:19]}  h5 {[%clk 0:01:14]} 27. Kg2 {[%clk 0:00:16]}  a5 {[%clk 0:01:12]} 28. Kg1 {[%clk 0:00:15]}  a4 {[%clk 0:01:11]} 29. Kg2 {[%clk 0:00:11]}  Qe7 {[%clk 0:01:04]} 30. Rxc3 {[%clk 0:00:08]}  Rxf2+ {[%clk 0:01:03]} 31. Qxf2 {[%clk 0:00:08]}  Bxf2 {[%clk 0:01:04]} 32. Rf3 {[%clk 0:00:08]}  f5 {[%clk 0:01:00]} 33. Rxf2 {[%clk 0:00:08]}  Nd3 {[%clk 0:00:59]} 34. Rfc2 {[%clk 0:00:04]}  Nxc1 {[%clk 0:00:59]} 35. Rxc1 {[%clk 0:00:05]}  Qb4 {[%clk 0:00:53]} 36. Rc2 {[%clk 0:00:04]}  Qb1 {[%clk 0:00:53]} 37. Re2 {[%clk 0:00:03]}  Qc1 {[%clk 0:00:52]} 38. Be6 {[%clk 0:00:02]}  Kf6 {[%clk 0:00:52]} 39. Bd5 {[%clk 0:00:02]}  e4 {[%clk 0:00:53]} 40. Kf2 {[%clk 0:00:03]}  Ke5 {[%clk 0:00:52]} 41. Bf7 {[%clk 0:00:02]}  f4 {[%clk 0:00:51]} 42. Bxg6 {[%clk 0:00:02]}  fxg3+ {[%clk 0:00:46]} 43. Kg2 {[%clk 0:00:02]}  e3 {[%clk 0:00:32]} 44. Bxh5 {[%clk 0:00:02]}  Kf4 {[%clk 0:00:28]} 45. Bf3 {[%clk 0:00:02]}  Qxc4 {[%clk 0:00:25]} 46. h5 {[%clk 0:00:03]}  a3 {[%clk 0:00:18]} 47. h6 {[%clk 0:00:02]}  Qf7 {[%clk 0:00:18]} 48. Rc2 {[%clk 0:00:01]}  Ke5 {[%clk 0:00:14]} 49. Kxg3 {[%clk 0:00:01]}  Qg6+ {[%clk 0:00:13]} 50. Bg4 {[%clk 0:00:02]}  Qxc2 {[%clk 0:00:13]} 0-1


[Site "https://www.chess.com"]

[Event "Titled Tuesday Blitz June 21 Early 2022"]
[White "Arabidze, Meri"]
[Black "Shton, Roman"]
[WhiteFideId "13604040"]
[BlackFideId "14137461"]
[WhiteElo "2335"]
[BlackElo "2013"]
[Result "1-0"]
[Round "02"]
[TimeControl "180+1"]
[Date "2022.06.22"]
[WhiteClock "0:00:07"]
[BlackClock "0:00:08"]

1. Nf3 {[%clk 0:03:00]}  d5 {[%clk 0:02:59]} 2. g3 {[%clk 0:03:01]}  Nf6 {[%clk 0:02:57]} 3. Bg2 {[%clk 0:03:01]}  Bf5 {[%clk 0:02:57]} 4. O-O {[%clk 0:03:00]}  e6 {[%clk 0:02:58]} 5. d3 {[%clk 0:03:00]}  c6 {[%clk 0:02:58]} 6. Nh4 {[%clk 0:03:00]}  Bg4 {[%clk 0:02:58]} 7. h3 {[%clk 0:03:00]}  Bh5 {[%clk 0:02:58]} 8. g4 {[%clk 0:02:58]}  Nfd7 {[%clk 0:02:57]} 9. Nf3 {[%clk 0:02:53]}  Bg6 {[%clk 0:02:56]} 10. Bf4 {[%clk 0:02:52]}  Qf6 {[%clk 0:02:42]} 11. Qc1 {[%clk 0:02:49]}  e5 {[%clk 0:02:40]} 12. Bg3 {[%clk 0:02:39]}  e4 {[%clk 0:02:32]} 13. Nh4 {[%clk 0:02:34]}  Bc5 {[%clk 0:02:03]} 14. Nxg6 {[%clk 0:02:26]}  hxg6 {[%clk 0:02:01]} 15. dxe4 {[%clk 0:02:21]}  dxe4 {[%clk 0:02:01]} 16. Nc3 {[%clk 0:02:19]}  e3 {[%clk 0:01:59]} 17. fxe3 {[%clk 0:02:13]}  Qe7 {[%clk 0:01:54]} 18. Ne4 {[%clk 0:02:10]}  Na6 {[%clk 0:01:48]} 19. Qd2 {[%clk 0:01:52]}  Rd8 {[%clk 0:01:43]} 20. Rad1 {[%clk 0:01:39]}  f6 {[%clk 0:01:37]} 21. Nxc5 {[%clk 0:01:12]}  Naxc5 {[%clk 0:01:29]} 22. Bd6 {[%clk 0:01:06]}  Ne4 {[%clk 0:01:16]} 23. Bxe7 {[%clk 0:00:58]}  Nxd2 {[%clk 0:01:16]} 24. Rxd2 {[%clk 0:00:24]}  Kxe7 {[%clk 0:01:15]} 25. Rd4 {[%clk 0:00:24]}  Ne5 {[%clk 0:01:09]} 26. Rfd1 {[%clk 0:00:24]}  g5 {[%clk 0:01:06]} 27. Kf2 {[%clk 0:00:23]}  b6 {[%clk 0:00:55]} 28. b3 {[%clk 0:00:21]}  c5 {[%clk 0:00:56]} 29. Rd5 {[%clk 0:00:22]}  Rxd5 {[%clk 0:00:55]} 30. Rxd5 {[%clk 0:00:20]}  Ke6 {[%clk 0:00:52]} 31. c4 {[%clk 0:00:19]}  Ke7 {[%clk 0:00:49]} 32. Kg3 {[%clk 0:00:19]}  Ke6 {[%clk 0:00:49]} 33. Be4 {[%clk 0:00:18]}  Ke7 {[%clk 0:00:45]} 34. Bf5 {[%clk 0:00:18]}  Rd8 {[%clk 0:00:41]} 35. h4 {[%clk 0:00:17]}  gxh4+ {[%clk 0:00:30]} 36. Kxh4 {[%clk 0:00:17]}  Rxd5 {[%clk 0:00:26]} 37. cxd5 {[%clk 0:00:17]}  c4 {[%clk 0:00:27]} 38. bxc4 {[%clk 0:00:11]}  Nxc4 {[%clk 0:00:28]} 39. e4 {[%clk 0:00:11]}  Nd2 {[%clk 0:00:24]} 40. g5 {[%clk 0:00:10]}  Nb1 {[%clk 0:00:11]} 41. gxf6+ {[%clk 0:00:10]}  gxf6 {[%clk 0:00:11]} 42. Kg4 {[%clk 0:00:06]}  Nc3 {[%clk 0:00:11]} 43. a3 {[%clk 0:00:03]}  Nxe2 {[%clk 0:00:11]} 44. Kf3 {[%clk 0:00:03]}  Nd4+ {[%clk 0:00:11]} 45. Kf4 {[%clk 0:00:03]}  Nc2 {[%clk 0:00:11]} 46. a4 {[%clk 0:00:03]}  Nb4 {[%clk 0:00:11]} 47. Ke3 {[%clk 0:00:03]}  a5 {[%clk 0:00:09]} 48. Kd4 {[%clk 0:00:03]}  Kd6 {[%clk 0:00:09]} 49. Kc4 {[%clk 0:00:03]}  Kc7 {[%clk 0:00:03]} 50. Kb5 {[%clk 0:00:04]}  Nd3 {[%clk 0:00:03]} 51. d6+ {[%clk 0:00:04]}  Kxd6 {[%clk 0:00:03]} 52. Kxb6 {[%clk 0:00:05]}  Nb2 {[%clk 0:00:03]} 53. Kxa5 {[%clk 0:00:05]}  Kc5 {[%clk 0:00:04]} 54. Bd7 {[%clk 0:00:04]}  Nc4+ {[%clk 0:00:04]} 55. Ka6 {[%clk 0:00:04]}  Kb4 {[%clk 0:00:04]} 56. Bb5 {[%clk 0:00:03]}  Nd6 {[%clk 0:00:04]} 57. Bc6 {[%clk 0:00:03]}  Nc4 {[%clk 0:00:04]} 58. Bd7 {[%clk 0:00:03]}  Na5 {[%clk 0:00:04]} 59. Bb5 {[%clk 0:00:02]}  Nb3 {[%clk 0:00:03]} 60. Kb6 {[%clk 0:00:03]}  Nc5 {[%clk 0:00:03]} 61. a5 {[%clk 0:00:02]}  Nxe4 {[%clk 0:00:03]} 62. a6 {[%clk 0:00:02]}  Nd6 {[%clk 0:00:04]} 63. Bd7 {[%clk 0:00:01]}  f5 {[%clk 0:00:02]} 64. Kc7 {[%clk 0:00:01]}  Nc4 {[%clk 0:00:02]} 65. a7 {[%clk 0:00:01]}  f4 {[%clk 0:00:02]} 66. a8=Q {[%clk 0:00:01]}  f3 {[%clk 0:00:03]} 67. Qb7+ {[%clk 0:00:02]}  Kc5 {[%clk 0:00:03]} 68. Qxf3 {[%clk 0:00:02]}  Ne5 {[%clk 0:00:04]} 69. Qf2+ {[%clk 0:00:03]}  Kd5 {[%clk 0:00:04]} 70. Bc6+ {[%clk 0:00:03]}  Nxc6 {[%clk 0:00:04]} 71. Qf3+ {[%clk 0:00:04]}  Kc4 {[%clk 0:00:04]} 72. Qxc6+ {[%clk 0:00:05]}  Kd4 {[%clk 0:00:05]} 73. Kd6 {[%clk 0:00:05]}  Ke3 {[%clk 0:00:05]} 74. Qd5 {[%clk 0:00:05]}  Kf4 {[%clk 0:00:06]} 75. Qe5+ {[%clk 0:00:06]}  Kg4 {[%clk 0:00:06]} 76. Ke6 {[%clk 0:00:06]}  Kh4 {[%clk 0:00:07]} 77. Qg7 {[%clk 0:00:06]}  Kh5 {[%clk 0:00:08]} 78. Kf5 {[%clk 0:00:07]}  Kh4 {[%clk 0:00:08]} 79. Qg4# {[%clk 0:00:07]} 1-0


[Site "https://www.chess.com"]

[Event "Titled Tuesday Blitz June 21 Early 2022"]
[White "Araujo Sanchez, Josue"]
[Black "Ovezdurdyyeva, Jemal"]
[WhiteFideId "6416896"]
[BlackFideId "14001888"]
[WhiteElo "2339"]
[BlackElo "1946"]
[Result "1-0"]
[Round "02"]
[TimeControl "180+1"]
[Date "2022.06.22"]
[WhiteClock "0:00:12"]
[BlackClock "0:00:21"]

1. d4 {[%clk 0:03:00]}  Nf6 {[%clk 0:02:59]} 2. c4 {[%clk 0:02:56]}  g6 {[%clk 0:02:59]} 3. g3 {[%clk 0:02:56]}  d5 {[%clk 0:02:58]} 4. cxd5 {[%clk 0:02:55]}  Nxd5 {[%clk 0:02:57]} 5. Bg2 {[%clk 0:02:55]}  Bg7 {[%clk 0:02:57]} 6. Nf3 {[%clk 0:02:55]}  O-O {[%clk 0:02:54]} 7. O-O {[%clk 0:02:55]}  b6 {[%clk 0:02:47]} 8. e4 {[%clk 0:02:10]}  Nf6 {[%clk 0:02:44]} 9. Nc3 {[%clk 0:02:06]}  Bb7 {[%clk 0:02:43]} 10. Re1 {[%clk 0:02:05]}  e6 {[%clk 0:02:25]} 11. Bf4 {[%clk 0:01:51]}  Na6 {[%clk 0:02:15]} 12. Qc1 {[%clk 0:01:39]}  c5 {[%clk 0:02:12]} 13. Bg5 {[%clk 0:01:06]}  cxd4 {[%clk 0:02:08]} 14. Rd1 {[%clk 0:00:59]}  e5 {[%clk 0:02:03]} 15. Nd5 {[%clk 0:00:44]}  Qd6 {[%clk 0:01:39]} 16. Nd2 {[%clk 0:00:29]}  Nxd5 {[%clk 0:01:33]} 17. exd5 {[%clk 0:00:27]}  Bxd5 {[%clk 0:01:32]} 18. Ne4 {[%clk 0:00:25]}  Qe6 {[%clk 0:01:23]} 19. Bh6 {[%clk 0:00:22]}  Rac8 {[%clk 0:01:13]} 20. Qd2 {[%clk 0:00:21]}  f5 {[%clk 0:01:03]} 21. Bxg7 {[%clk 0:00:20]}  Kxg7 {[%clk 0:01:01]} 22. Ng5 {[%clk 0:00:19]}  Qd6 {[%clk 0:01:00]} 23. f4 {[%clk 0:00:16]}  Bxg2 {[%clk 0:00:55]} 24. Kxg2 {[%clk 0:00:16]}  h6 {[%clk 0:00:36]} 25. Nf3 {[%clk 0:00:13]}  e4 {[%clk 0:00:30]} 26. Qxd4+ {[%clk 0:00:12]}  Qxd4 {[%clk 0:00:29]} 27. Nxd4 {[%clk 0:00:13]}  Rfd8 {[%clk 0:00:29]} 28. Ne6+ {[%clk 0:00:13]}  Kf6 {[%clk 0:00:29]} 29. Nxd8 {[%clk 0:00:13]}  Rc2+ {[%clk 0:00:29]} 30. Kh3 {[%clk 0:00:13]}  Rxb2 {[%clk 0:00:27]} 31. Rd6+ {[%clk 0:00:12]}  Ke7 {[%clk 0:00:27]} 32. Rad1 {[%clk 0:00:13]}  Nc5 {[%clk 0:00:25]} 33. Nc6+ {[%clk 0:00:14]}  Kf7 {[%clk 0:00:25]} 34. Ne5+ {[%clk 0:00:14]}  Ke7 {[%clk 0:00:21]} 35. Nxg6+ {[%clk 0:00:14]}  Kf7 {[%clk 0:00:21]} 36. Ne5+ {[%clk 0:00:14]}  Ke7 {[%clk 0:00:21]} 37. Rxh6 {[%clk 0:00:14]}  Rxa2 {[%clk 0:00:21]} 38. Rdd6 {[%clk 0:00:12]} 1-0


[Site "https://www.chess.com"]

[Event "Titled Tuesday Blitz June 21 Early 2022"]
[White "Bachmann, Axel"]
[Black "Wagner, Dinara"]
[WhiteFideId "3700488"]
[BlackFideId "24157570"]
[WhiteElo "2777"]
[BlackElo "2562"]
[Result "1-0"]
[Round "02"]
[TimeControl "180+1"]
[Date "2022.06.22"]
[WhiteClock "0:00:49"]
[BlackClock "0:00:02"]

1. e4 {[%clk 0:02:53]}  c5 {[%clk 0:02:54]} 2. Nf3 {[%clk 0:02:52]}  d6 {[%clk 0:02:54]} 3. d4 {[%clk 0:02:53]}  cxd4 {[%clk 0:02:55]} 4. Nxd4 {[%clk 0:02:53]}  Nf6 {[%clk 0:02:55]} 5. Nc3 {[%clk 0:02:54]}  a6 {[%clk 0:02:56]} 6. Be2 {[%clk 0:02:54]}  e6 {[%clk 0:02:47]} 7. Be3 {[%clk 0:02:53]}  h5 {[%clk 0:02:42]} 8. O-O {[%clk 0:02:48]}  Be7 {[%clk 0:02:38]} 9. f4 {[%clk 0:02:44]}  Nc6 {[%clk 0:02:32]} 10. e5 {[%clk 0:02:33]}  dxe5 {[%clk 0:02:31]} 11. Nxc6 {[%clk 0:02:32]}  Qxd1 {[%clk 0:02:17]} 12. Raxd1 {[%clk 0:02:33]}  bxc6 {[%clk 0:02:18]} 13. fxe5 {[%clk 0:02:33]}  Nd5 {[%clk 0:02:18]} 14. Bd2 {[%clk 0:02:22]}  Nxc3 {[%clk 0:02:14]} 15. Bxc3 {[%clk 0:02:20]}  g6 {[%clk 0:02:12]} 16. Rf4 {[%clk 0:02:14]}  O-O {[%clk 0:02:05]} 17. Bf3 {[%clk 0:02:10]}  Rb8 {[%clk 0:01:46]} 18. Bxc6 {[%clk 0:02:06]}  Bb7 {[%clk 0:01:47]} 19. Bxb7 {[%clk 0:01:40]}  Rxb7 {[%clk 0:01:46]} 20. Rc4 {[%clk 0:01:41]}  Rfb8 {[%clk 0:01:28]} 21. b3 {[%clk 0:01:40]}  Rb5 {[%clk 0:00:34]} 22. a4 {[%clk 0:01:39]}  R5b7 {[%clk 0:00:23]} 23. Rc6 {[%clk 0:01:36]}  Ra8 {[%clk 0:00:24]} 24. Ba5 {[%clk 0:01:31]}  Bb4 {[%clk 0:00:24]} 25. Rd8+ {[%clk 0:01:25]}  Rxd8 {[%clk 0:00:23]} 26. Bxd8 {[%clk 0:01:26]}  Rd7 {[%clk 0:00:21]} 27. Bf6 {[%clk 0:01:24]}  Kh7 {[%clk 0:00:12]} 28. c3 {[%clk 0:01:21]}  Ba3 {[%clk 0:00:10]} 29. Rxa6 {[%clk 0:01:18]}  Bc1 {[%clk 0:00:05]} 30. Rd6 {[%clk 0:01:12]}  Rc7 {[%clk 0:00:04]} 31. c4 {[%clk 0:01:09]}  Rb7 {[%clk 0:00:05]} 32. Rd3 {[%clk 0:01:07]}  g5 {[%clk 0:00:05]} 33. a5 {[%clk 0:01:04]}  Kg6 {[%clk 0:00:06]} 34. Kf2 {[%clk 0:01:02]}  Kf5 {[%clk 0:00:06]} 35. a6 {[%clk 0:01:02]}  Ra7 {[%clk 0:00:06]} 36. Rd6 {[%clk 0:01:02]}  Bb2 {[%clk 0:00:05]} 37. b4 {[%clk 0:01:01]}  Ba3 {[%clk 0:00:05]} 38. Rb6 {[%clk 0:01:00]}  Ke4 {[%clk 0:00:03]} 39. Bxg5 {[%clk 0:00:56]}  Kd4 {[%clk 0:00:03]} 40. Be3+ {[%clk 0:00:56]}  Kxc4 {[%clk 0:00:03]} 41. Rc6+ {[%clk 0:00:52]}  Kb5 {[%clk 0:00:04]} 42. Bxa7 {[%clk 0:00:52]}  Kxc6 {[%clk 0:00:04]} 43. Bc5 {[%clk 0:00:52]}  Bb2 {[%clk 0:00:02]} 44. b5+ {[%clk 0:00:51]}  Kc7 {[%clk 0:00:02]} 45. b6+ {[%clk 0:00:51]}  Kb8 {[%clk 0:00:02]} 46. Bd6+ {[%clk 0:00:50]}  Kc8 {[%clk 0:00:02]} 47. b7+ {[%clk 0:00:50]}  Kd7 {[%clk 0:00:02]} 48. b8=Q {[%clk 0:00:49]} 1-0


[Site "https://www.chess.com"]

[Event "Titled Tuesday Blitz June 21 Early 2022"]
[White "Barp, Alberto"]
[Black "Barbashin, Igor"]
[WhiteFideId "872555"]
[BlackFideId "4155718"]
[WhiteElo "2709"]
[BlackElo "2294"]
[Result "1-0"]
[Round "02"]
[TimeControl "180+1"]
[Date "2022.06.22"]
[WhiteClock "0:01:43"]
[BlackClock "0:01:00"]

1. d4 {[%clk 0:02:53]}  Nf6 {[%clk 0:02:59]} 2. Bg5 {[%clk 0:02:48]}  g6 {[%clk 0:02:54]} 3. Bxf6 {[%clk 0:02:47]}  exf6 {[%clk 0:02:53]} 4. g3 {[%clk 0:02:48]}  Bg7 {[%clk 0:02:53]} 5. Bg2 {[%clk 0:02:45]}  O-O {[%clk 0:02:53]} 6. e3 {[%clk 0:02:46]}  f5 {[%clk 0:02:52]} 7. Ne2 {[%clk 0:02:45]}  d6 {[%clk 0:02:48]} 8. Nd2 {[%clk 0:02:46]}  Nc6 {[%clk 0:02:48]} 9. O-O {[%clk 0:02:47]}  Ne7 {[%clk 0:02:46]} 10. c4 {[%clk 0:02:46]}  Rb8 {[%clk 0:02:36]} 11. b4 {[%clk 0:02:46]}  c6 {[%clk 0:02:34]} 12. a4 {[%clk 0:02:46]}  d5 {[%clk 0:02:28]} 13. Qc2 {[%clk 0:02:44]}  Be6 {[%clk 0:02:25]} 14. Nf4 {[%clk 0:02:43]}  Qd7 {[%clk 0:02:18]} 15. Nb3 {[%clk 0:02:25]}  b6 {[%clk 0:02:07]} 16. Nd2 {[%clk 0:02:24]}  Rfc8 {[%clk 0:02:03]} 17. Rfc1 {[%clk 0:02:23]}  a5 {[%clk 0:01:58]} 18. bxa5 {[%clk 0:02:22]}  bxa5 {[%clk 0:01:58]} 19. Rab1 {[%clk 0:02:20]}  Bf8 {[%clk 0:01:40]} 20. Nb3 {[%clk 0:02:16]}  dxc4 {[%clk 0:01:27]} 21. Nxa5 {[%clk 0:02:02]}  Nd5 {[%clk 0:01:13]} 22. Nxe6 {[%clk 0:01:50]}  fxe6 {[%clk 0:01:11]} 23. Qxc4 {[%clk 0:01:48]}  Rxb1 {[%clk 0:01:00]} 24. Rxb1 {[%clk 0:01:49]}  Bb4 {[%clk 0:01:00]} 25. Bxd5 {[%clk 0:01:43]} 1-0


[Site "https://www.chess.com"]

[Event "Titled Tuesday Blitz June 21 Early 2022"]
[White "Begunov, Konstantin"]
[Black "Lewtak, Damian"]
[WhiteFideId "4118510"]
[BlackFideId "1141724"]
[WhiteElo "2262"]
[BlackElo "2379"]
[Result "1-0"]
[Round "02"]
[TimeControl "180+1"]
[Date "2022.06.22"]
[WhiteClock "0:01:47"]
[BlackClock "0:02:02"]

1. d4 {[%clk 0:02:56]}  b6 {[%clk 0:03:00]} 2. c4 {[%clk 0:02:56]}  Bb7 {[%clk 0:02:59]} 3. Nc3 {[%clk 0:02:55]}  g6 {[%clk 0:02:55]} 4. e4 {[%clk 0:02:53]}  Bg7 {[%clk 0:02:55]} 5. Be3 {[%clk 0:02:48]}  d6 {[%clk 0:02:55]} 6. Qd2 {[%clk 0:02:47]}  Nd7 {[%clk 0:02:55]} 7. Bd3 {[%clk 0:02:35]}  e5 {[%clk 0:02:49]} 8. Nge2 {[%clk 0:02:31]}  exd4 {[%clk 0:02:40]} 9. Nxd4 {[%clk 0:02:31]}  Ne7 {[%clk 0:02:24]} 10. O-O {[%clk 0:02:24]}  Nc5 {[%clk 0:02:16]} 11. Bc2 {[%clk 0:02:22]}  Ne6 {[%clk 0:02:15]} 12. Ba4+ {[%clk 0:01:57]}  Kf8 {[%clk 0:02:08]} 13. Nd5 {[%clk 0:01:51]}  Nc6 {[%clk 0:02:02]} 14. Nxc6 {[%clk 0:01:47]} 1-0


[Site "https://www.chess.com"]

[Event "Titled Tuesday Blitz June 21 Early 2022"]
[White "Bortnyk, Mykola"]
[Black "Jaracz, Pawel"]
[WhiteFideId "14120836"]
[BlackFideId "1102222"]
[WhiteElo "2582"]
[BlackElo "2459"]
[Result "1/2-1/2"]
[Round "02"]
[TimeControl "180+1"]
[Date "2022.06.21"]
[WhiteClock "0:00:48"]
[BlackClock "0:00:32"]

1. e4 {[%clk 0:03:00]}  c5 {[%clk 0:02:55]} 2. c3 {[%clk 0:03:00]}  Nf6 {[%clk 0:02:53]} 3. e5 {[%clk 0:03:00]}  Nd5 {[%clk 0:02:54]} 4. d4 {[%clk 0:03:01]}  cxd4 {[%clk 0:02:54]} 5. Qxd4 {[%clk 0:03:02]}  e6 {[%clk 0:02:53]} 6. Bc4 {[%clk 0:03:02]}  Nc6 {[%clk 0:02:52]} 7. Qe4 {[%clk 0:03:03]}  d6 {[%clk 0:02:48]} 8. Nf3 {[%clk 0:03:03]}  dxe5 {[%clk 0:02:46]} 9. Nxe5 {[%clk 0:03:04]}  Nxe5 {[%clk 0:02:45]} 10. Qxe5 {[%clk 0:03:05]}  Qc7 {[%clk 0:02:44]} 11. Qxc7 {[%clk 0:02:58]}  Nxc7 {[%clk 0:02:43]} 12. Bf4 {[%clk 0:02:59]}  Nd5 {[%clk 0:02:39]} 13. Bxd5 {[%clk 0:02:56]}  exd5 {[%clk 0:02:39]} 14. Nd2 {[%clk 0:02:55]}  Be6 {[%clk 0:02:38]} 15. Nf3 {[%clk 0:02:50]}  Bc5 {[%clk 0:02:33]} 16. Be3 {[%clk 0:02:48]}  Be7 {[%clk 0:02:32]} 17. Nd4 {[%clk 0:02:44]}  O-O {[%clk 0:02:27]} 18. O-O-O {[%clk 0:02:40]}  Rfc8 {[%clk 0:02:25]} 19. Rhe1 {[%clk 0:02:38]}  Bf6 {[%clk 0:02:24]} 20. Nb3 {[%clk 0:02:18]}  a5 {[%clk 0:02:04]} 21. Nd4 {[%clk 0:01:32]}  a4 {[%clk 0:01:31]} 22. Kd2 {[%clk 0:01:28]}  b5 {[%clk 0:01:23]} 23. a3 {[%clk 0:01:24]}  Bxd4 {[%clk 0:01:19]} 24. Bxd4 {[%clk 0:01:24]}  Re8 {[%clk 0:01:20]} 25. f3 {[%clk 0:01:14]}  f6 {[%clk 0:01:18]} 26. g4 {[%clk 0:01:13]}  Bd7 {[%clk 0:01:17]} 27. Be3 {[%clk 0:01:12]}  Bc6 {[%clk 0:01:17]} 28. Kd3 {[%clk 0:01:10]}  d4 {[%clk 0:01:13]} 29. Bxd4 {[%clk 0:01:02]}  Bxf3 {[%clk 0:01:13]} 30. Rxe8+ {[%clk 0:01:02]}  Rxe8 {[%clk 0:01:13]} 31. Rg1 {[%clk 0:01:03]}  Kf7 {[%clk 0:01:00]} 32. Rg3 {[%clk 0:00:59]}  Be2+ {[%clk 0:00:59]} 33. Kd2 {[%clk 0:00:59]}  g5 {[%clk 0:00:56]} 34. Rg2 {[%clk 0:00:57]}  Bc4 {[%clk 0:00:55]} 35. Rf2 {[%clk 0:00:56]}  Re6 {[%clk 0:00:55]} 36. h4 {[%clk 0:00:56]}  h6 {[%clk 0:00:48]} 37. hxg5 {[%clk 0:00:56]}  hxg5 {[%clk 0:00:48]} 38. Be3 {[%clk 0:00:52]}  Kg6 {[%clk 0:00:48]} 39. Bd4 {[%clk 0:00:52]}  Bd5 {[%clk 0:00:42]} 40. Rf5 {[%clk 0:00:52]}  Bc4 {[%clk 0:00:40]} 41. Rf2 {[%clk 0:00:50]}  Kf7 {[%clk 0:00:33]} 42. Be3 {[%clk 0:00:49]}  Ke7 {[%clk 0:00:33]} 43. Bc5+ {[%clk 0:00:49]}  Kf7 {[%clk 0:00:32]} 44. Be3 {[%clk 0:00:48]} 1/2-1/2


[Site "https://www.chess.com"]